fUSD/lending_fUSD_20240414
["ID","MTS","AMOUNT","RATE_DAILY","PERIOD"]
[322585673,1713084680110,-4973.27,0.00050136,120]
[322585674,1713084680121,-678.49687685,0.00050136,120]
[322585675,1713084680919,-2689.26312315,0.00050136,120]
[322585676,1713084680930,-1623.72,0.00050136,120]
[322585677,1713084680941,-500.0,0.00050136,120]
[322585678,1713084680952,-468.60758161,0.00050136,120]
[322585679,1713084680962,-514.87034558,0.00050136,120]
[322585680,1713084680972,-500.0,0.00050136,120]
[322585681,1713084680984,-500.0,0.00050136,120]
[322585682,1713084680993,-782.9,0.00050136,120]
[322585683,1713084681003,-2740.64,0.00050136,120]
[322585684,1713084681013,-500.0,0.00050136,120]
[322585685,1713084681027,-4425.18,0.00050136,120]
[322585686,1713084681037,-500.0,0.00050136,120]
[322585687,1713084681047,-153.99542137,0.00050136,120]
[322585688,1713084681057,-1960.77,0.00050136,120]
[322585689,1713084681067,-5397.41,0.00050136,120]
[322585690,1713084681077,-9359.29,0.00050136,120]
[322585691,1713084681087,-500.0,0.00050136,120]
[322585692,1713084681097,-4035.76,0.00050136,120]
[322585693,1713084681107,-2120.75,0.00050136,120]
[322585694,1713084681117,-7244.62,0.00050136,120]
[322585695,1713084681128,-1270.46,0.00050136,120]
[322585696,1713084681137,-500.0,0.00050136,120]
[322585697,1713084681148,-548.39753036,0.00050136,120]
[322585698,1713084681158,-500.0,0.00050136,120]
[322585699,1713084681168,-500.0,0.00050136,120]
[322585700,1713084681179,-2205.58,0.00050136,120]
[322585701,1713084681189,-11212.87,0.00050136,120]
[322585702,1713084681199,-7111.23,0.00050136,120]
[322585703,1713084681209,-1786.11,0.00050136,120]
[322585704,1713084681219,-500.0,0.00050136,120]
[322585705,1713084681229,-500.0,0.00050136,120]
[322585706,1713084681239,-500.0,0.00050136,120]
[322585707,1713084681248,-3933.71,0.00050136,120]
[322585708,1713084681260,-1031.48,0.00050136,120]
[322585709,1713084681270,-10730.03,0.00050136,21]
[322585710,1713084681280,-1202.71,0.00050136,120]
[322585711,1713084681290,-500.0,0.00050136,120]
[322585712,1713084681300,-2216.86,0.00050136,120]
[322585713,1713084681310,-500.0,0.00050136,120]
[322585714,1713084681321,-500.0,0.00050136,120]
[322585715,1713084681331,-4660.32,0.00050136,120]
[322585716,1713084681341,-884.01,0.00050136,120]
[322585717,1713084681351,-2353.54,0.00050136,120]
[322585718,1713084681360,-8661.67,0.00050136,120]
[322585719,1713084681370,-500.0,0.00050136,120]
[322585720,1713084681380,-1104.92,0.00050136,120]
[322585721,1713084681390,-500.0,0.00050136,120]
[322585722,1713084681400,-638.89171732,0.00050136,120]
[322585723,1713084681410,-500.0,0.00050136,120]
[322585724,1713084681419,-2726.97,0.00050136,120]
[322585725,1713084681429,-776.98,0.00050136,120]
[322585726,1713084681438,-500.0,0.00050136,120]
[322585727,1713084681448,-275.18901772,0.00050136,120]
[322585728,1713084681458,-2121.1,0.00050136,7]
[322585729,1713084681468,-5599.04,0.00050136,120]
[322585730,1713084681478,-553.64,0.00050136,120]
[322585731,1713084681488,-500.0,0.00050136,120]
[322585732,1713084681498,-500.0,0.00050136,120]
[322585733,1713084681511,-1070.71,0.00050136,120]
[322585734,1713084681521,-31544.12,0.00050136,120]
[322585735,1713084681531,-500.0,0.00050136,120]
[322585736,1713084681541,-6398.48,0.00050136,120]
[322585737,1713084681550,-1829.25,0.00050136,120]
[322585738,1713084681561,-812.49,0.00050136,120]
[322585739,1713084681570,-500.0,0.00050136,120]
[322585740,1713084681580,-2965.08,0.00050136,120]
[322585741,1713084681590,-522.70391289,0.00050136,120]
[322585742,1713084681600,-3835.72,0.00050136,120]
[322585743,1713084681610,-500.0,0.00050136,120]
[322585744,1713084681620,-500.0,0.00050136,120]
[322585745,1713084681631,-2246.5,0.00050136,120]
[322585746,1713084681640,-7067.01,0.00050136,120]
[322585747,1713084681650,-500.0,0.00050136,120]
[322585748,1713084681659,-500.0,0.00050136,120]
[322585749,1713084681669,-522.37536068,0.00050136,120]
[322585750,1713084681679,-16596.35,0.00050136,120]
[322585751,1713084681691,-7738.44,0.00050136,120]
[322585752,1713084681701,-5068.63,0.00050136,120]
[322585753,1713084681711,-7073.04,0.00050136,120]
[322585754,1713084681721,-1932.9,0.00050136,120]
[322585755,1713084681731,-500.0,0.00050136,120]
[322585756,1713084681742,-1655.78,0.00050136,120]
[322585757,1713084681754,-500.0,0.00050136,120]
[322585758,1713084681763,-500.0,0.00050136,120]
[322585759,1713084681774,-581.98,0.00050136,120]
[322585760,1713084681784,-986.69,0.00050136,120]
[322585761,1713084681794,-500.0,0.00050136,120]
[322585762,1713084681805,-551.52,0.00050136,120]
[322585763,1713084681815,-1144.68,0.00050136,120]
[322585764,1713084681826,-500.0,0.00050136,120]
[322585765,1713084681835,-500.0,0.00050136,120]
[322585766,1713084681845,-1568.55,0.00050136,120]
[322585767,1713084681855,-989.13,0.00050136,120]
[322585768,1713084681865,-4795.13,0.00050136,120]
[322585769,1713084681875,-500.0,0.00050136,120]
[322585770,1713084681885,-6690.0,0.00050136,120]
[322585771,1713084681895,-500.0,0.00050136,120]
[322585772,1713084681904,-500.0,0.00050136,120]
[322585773,1713084681915,-4463.09,0.00050136,120]
[322585774,1713084681924,-11483.63,0.00050136,120]
[322585775,1713084681934,-500.0,0.00050136,120]
[322585776,1713084681943,-324.74201622,0.00050136,120]
[322585777,1713084681953,-500.0,0.00050136,120]
[322585778,1713084681962,-1258.46650705,0.00050136,120]
[322585779,1713084681982,-362.60725604,0.00050136,120]
[322585780,1713084681993,-9220.77623691,0.00050136,120]
[322585781,1713084682006,-13895.98,0.00050136,120]
[322585782,1713084682018,-4469.11,0.00050136,120]
[322585783,1713084682029,-500.0,0.00050136,120]
[322585784,1713084682040,-920.23,0.00050136,120]
[322585785,1713084682050,-3018.33,0.00050136,120]
[322585786,1713084682061,-2632.03736332,0.00050136,120]
[322585787,1713084682086,-648.53,0.00050136,120]
[322585788,1713084683598,-292.20549508,0.0002899,2]
[322585789,1713084683610,-292.20549508,0.0002899,2]
[322585790,1713084683622,-292.20549508,0.0002899,2]
[322585791,1713084683633,-292.20549508,0.0002899,2]
[322585792,1713084683644,-187.91771619,0.0002899,2]
[322585793,1713084683788,-104.28777889,0.0002899,2]
[322585794,1713084683800,-292.20549508,0.0002899,2]
[322585795,1713084683811,-292.20549508,0.00029423,2]
[322585796,1713084683822,-292.20549508,0.00029423,2]
[322585797,1713084683833,-292.20549508,0.00029423,2]
[322585798,1713084683843,-292.20549508,0.00029423,2]
[322585799,1713084683854,-255.27436836,0.00029423,2]
[322585800,1713084683972,-36.93112672,0.00029423,2]
[322585801,1713084683983,-292.20549508,0.00029423,2]
[322585802,1713084683994,-292.20549508,0.00029853,2]
[322585803,1713084684006,-292.20549508,0.0002989,2]
[322585804,1713084684022,-157.822,0.00030455,2]
[322585805,1713084684033,-151.442,0.00030455,2]
[322585806,1713084684044,-150.0,0.00033455,2]
[322585807,1713084684054,-150.0,0.00033455,2]
[322585808,1713084684064,-281.36727661,0.000419,2]
[322585809,1713084684075,-1775.08771321,0.00042,30]
[322585810,1713084684084,-412.35,0.00043329,2]
[322585811,1713084684095,-500.0,0.00049315,120]
[322585812,1713084684107,-500.0,0.00049315,120]
[322585813,1713084684118,-500.0,0.00049589,120]
[322585814,1713084684128,-321.71177297,0.00049589,120]
[322585815,1713084684139,-500.0,0.00049863,120]
[322585816,1713084684150,-500.0,0.00049863,120]
[322585817,1713084684160,-2820.72263668,0.00050136,120]
[322585818,1713084684170,-500.0,0.00050136,120]
[322585819,1713084684181,-500.0,0.00050136,120]
[322585820,1713084684191,-700.26,0.00050136,120]
[322585821,1713084684203,-500.0,0.00050136,120]
[322585822,1713084684213,-500.0,0.00050136,120]
[322585823,1713084684223,-2072.19,0.00050136,120]
[322585824,1713084684233,-628.46,0.00050136,120]
[322585825,1713084684245,-633.56,0.00050136,120]
[322585826,1713084684258,-4951.11,0.00050136,120]
[322585827,1713084684269,-681.17,0.00050136,120]
[322585828,1713084684280,-500.0,0.00050136,120]
[322585829,1713084684293,-500.0,0.00050136,120]
[322585830,1713084684304,-500.0,0.00050136,120]
[322585831,1713084684314,-500.0,0.00050136,120]
[322585832,1713084684324,-1984.89,0.00050136,120]
[322585833,1713084684336,-3294.48,0.00050136,120]
[322585834,1713084684346,-325.36655596,0.00050136,120]
[322585835,1713084684357,-4080.24,0.00050136,120]
[322585836,1713084684367,-2283.43,0.00050136,120]
[322585837,1713084684378,-5864.74,0.00050136,120]
[322585838,1713084684389,-282.73573982,0.00050136,120]
[322585839,1713084684443,-292.20549508,0.0002989,2]
[322585840,1713084684455,-99.37334682,0.00050136,120]
[322585841,1713084684468,-117.89091336,0.00050136,120]
[322585842,1713084684480,-308.45144616,0.00050136,120]
[322585843,1713084685349,-292.20549508,0.00029988,2]
[322585844,1713084685360,-292.20549508,0.0002999,2]
[322585845,1713084685369,-292.20549508,0.0002999,2]
[322585846,1713084685379,-292.20549508,0.0002999,2]
[322585847,1713084685389,-265.86,0.00043329,2]
[322585848,1713084685399,-500.0,0.00049315,120]
[322585849,1713084685408,-500.0,0.00049589,120]
[322585850,1713084685418,-500.0,0.00049863,120]
[322585851,1713084685427,-15.31801968,0.00050136,120]
[322585852,1713084685448,-150.0,0.00043329,2]
[322585853,1713084685457,-281.3672766,0.00043934,2]
[322585854,1713084685467,-21.77501057,0.00050136,120]
[322585855,1713084685481,-356.320998,0.00050136,120]
[322585856,1713084685509,-5078.12452559,0.00050136,120]
[322585857,1713084685520,-5045.71,0.00050136,120]
[322585858,1713084685531,-677.48,0.00050136,120]
[322585859,1713084685542,-500.0,0.00050136,120]
[322585860,1713084685553,-500.0,0.00050136,120]
[322585861,1713084685563,-500.0,0.00050136,120]
[322585862,1713084685574,-500.0,0.00050136,120]
[322585863,1713084685584,-500.0,0.00050136,120]
[322585864,1713084685595,-967.33,0.00050136,120]
[322585865,1713084685604,-500.0,0.00050136,120]
[322585866,1713084685614,-667.4,0.00050136,120]
[322585867,1713084685625,-608.29,0.00050136,120]
[322585868,1713084685636,-500.0,0.00050136,120]
[322585869,1713084685647,-6247.433045,0.00050136,120]
[322585870,1713084685762,-292.20549508,0.0002999,2]
[322585871,1713084685773,-356.07227492,0.00050136,120]
[322585872,1713084686599,-1548.5,0.00028989,2]
[322585873,1713084686656,-396.89559595,0.00028989,2]
[322585874,1713084686666,-292.20549508,0.0002999,2]
[322585875,1713084686676,-150.0,0.00043329,2]
[322585876,1713084686688,-104.32395129,0.00050136,120]
[322585877,1713084686700,-8921.91072879,0.00050136,120]
[322585878,1713084686710,-703.2,0.00050136,120]
[322585879,1713084686721,-3122.17,0.00050136,120]
[322585880,1713084686731,-5584.31,0.00050136,120]
[322585881,1713084686742,-500.0,0.00050136,120]
[322585882,1713084686751,-2041.27,0.00050136,120]
[322585883,1713084686763,-500.0,0.00050136,120]
[322585884,1713084686774,-1088.43,0.00050136,120]
[322585885,1713084686785,-386.02890152,0.00050136,120]
[322585886,1713084686796,-500.0,0.00050136,120]
[322585887,1713084686806,-548.19,0.00050136,120]
[322585888,1713084686817,-36259.52,0.00050136,120]
[322585889,1713084686827,-5147.89,0.00050136,120]
[322585890,1713084686838,-500.0,0.00050136,120]
[322585891,1713084686848,-500.0,0.00050136,120]
[322585892,1713084686868,-1115.66,0.00050136,120]
[322585893,1713084686885,-9066.77,0.00050136,120]
[322585894,1713084686895,-4476.0,0.00050136,120]
[322585895,1713084686906,-1295.73,0.00050136,120]
[322585896,1713084686916,-2344.48,0.00050136,120]
[322585897,1713084686926,-808.51,0.00050136,120]
[322585898,1713084686938,-1319.16,0.00050136,120]
[322585899,1713084686949,-2551.38,0.00050136,120]
[322585900,1713084686959,-500.0,0.00050136,120]
[322585901,1713084686970,-610.26,0.00050136,120]
[322585902,1713084686986,-3175.04,0.00050136,120]
[322585903,1713084686995,-500.0,0.00050136,120]
[322585904,1713084687006,-3990.17,0.00050136,120]
[322585905,1713084687016,-1533.11,0.00050136,120]
[322585906,1713084687027,-500.0,0.00050136,120]
[322585907,1713084687037,-500.0,0.00050136,120]
[322585908,1713084687047,-5503.02,0.00050136,120]
[322585909,1713084687059,-500.0,0.00050136,120]
[322585910,1713084687071,-2698.94,0.00050136,120]
[322585911,1713084687083,-1458.23,0.00050136,120]
[322585912,1713084687093,-512.61202432,0.00050136,120]
[322585913,1713084687105,-31236.42,0.00050136,120]
[322585914,1713084687115,-693.7,0.00050136,120]
[322585915,1713084687126,-1965.13,0.00050136,120]
[322585916,1713084687137,-3327.19,0.00050136,120]
[322585917,1713084687147,-5207.03,0.00050136,120]
[322585918,1713084687160,-500.0,0.00050136,120]
[322585919,1713084687171,-500.0,0.00050136,120]
[322585920,1713084687182,-5705.48,0.00050136,120]
[322585921,1713084687192,-500.0,0.00050136,120]
[322585922,1713084687203,-5705.12,0.00050136,120]
[322585923,1713084687212,-1080.77,0.00050136,120]
[322585924,1713084687222,-609.27862172,0.00050136,120]
[322585925,1713084687234,-500.0,0.00050136,120]
[322585926,1713084687244,-783.24,0.00050136,120]
[322585927,1713084687256,-663.48,0.00050136,120]
[322585928,1713084687266,-3263.65,0.00050136,120]
[322585929,1713084687278,-500.0,0.00050136,120]
[322585930,1713084687288,-500.0,0.00050136,120]
[322585931,1713084687298,-9934.25,0.00050136,120]
[322585932,1713084687309,-1122.72,0.00050136,120]
[322585933,1713084687319,-500.0,0.00050136,120]
[322585934,1713084687330,-500.0,0.00050136,120]
[322585935,1713084687341,-500.0,0.00050136,120]
[322585936,1713084687352,-500.0,0.00050136,120]
[322585937,1713084687363,-500.0,0.00050136,120]
[322585938,1713084687374,-5084.6,0.00050136,120]
[322585939,1713084687385,-500.0,0.00050136,120]
[322585940,1713084687396,-7675.11,0.00050136,120]
[322585941,1713084687407,-474.77994022,0.00050136,120]
[322585942,1713084687418,-4269.37,0.00050136,120]
[322585943,1713084687428,-5932.43,0.00050136,120]
[322585944,1713084687439,-2389.25,0.00050136,120]
[322585945,1713084687449,-500.0,0.00050136,120]
[322585946,1713084687458,-1468.58,0.00050136,120]
[322585947,1713084687470,-239.64,0.00050136,120]
[322585948,1713084687481,-940.86,0.00050136,120]
[322585949,1713084687491,-16551.18,0.00050136,120]
[322585950,1713084687501,-1528.96,0.00050136,7]
[322585951,1713084687513,-500.0,0.00050136,120]
[322585952,1713084687523,-500.0,0.00050136,120]
[322585953,1713084687532,-783.72,0.00050136,120]
[322585954,1713084687542,-500.0,0.00050136,120]
[322585955,1713084687552,-500.0,0.00050136,120]
[322585956,1713084687562,-1583.49,0.00050136,120]
[322585957,1713084687573,-500.0,0.00050136,120]
[322585958,1713084687584,-2026.77,0.00050136,120]
[322585959,1713084687595,-500.0,0.00050136,120]
[322585960,1713084687609,-3010.35,0.00050136,120]
[322585961,1713084687619,-7390.59,0.00050136,120]
[322585962,1713084687629,-1409.2,0.00050136,120]
[322585963,1713084687639,-533.64570905,0.00050136,120]
[322585964,1713084687650,-500.0,0.00050136,120]
[322585965,1713084687661,-3754.03,0.00050136,120]
[322585966,1713084687671,-500.0,0.00050136,120]
[322585967,1713084687681,-12211.47,0.00050136,120]
[322585968,1713084687691,-889.52,0.00050136,120]
[322585969,1713084687702,-500.0,0.00050136,120]
[322585970,1713084687713,-871.67,0.00050136,120]
[322585971,1713084687723,-510.72933501,0.00050136,120]
[322585972,1713084687733,-500.0,0.00050136,120]
[322585973,1713084687743,-577.55,0.00050136,120]
[322585974,1713084687753,-1895.54,0.00050136,120]
[322585975,1713084687763,-500.0,0.00050136,120]
[322585976,1713084687772,-1305.12,0.00050136,120]
[322585977,1713084687783,-500.0,0.00050136,120]
[322585978,1713084687792,-5000.0,0.00050136,120]
[322585979,1713084687803,-2000.0,0.00050136,30]
[322585980,1713084687812,-500.0,0.00050136,120]
[322585981,1713084687821,-617.5,0.00050136,120]
[322585982,1713084687831,-500.0,0.00050136,120]
[322585983,1713084687841,-13036.63,0.00050136,120]
[322585984,1713084687851,-533.14,0.00050136,120]
[322585985,1713084687860,-7199.38,0.00050136,120]
[322585986,1713084687870,-2470.7,0.00050136,120]
[322585987,1713084687880,-781.39,0.00050136,120]
[322585988,1713084687892,-500.0,0.00050136,120]
[322585989,1713084687901,-1688.5,0.00050136,120]
[322585990,1713084687912,-500.0,0.00050136,120]
[322585991,1713084687922,-25912.31,0.00050136,120]
[322585992,1713084687933,-3392.24,0.00050136,120]
[322585993,1713084687943,-567.66,0.00050136,2]
[322585994,1713084687953,-3147.97,0.00050136,120]
[322585995,1713084687963,-500.0,0.00050136,120]
[322585996,1713084687972,-2233.67,0.00050136,120]
[322585997,1713084687982,-500.0,0.00050136,120]
[322585998,1713084687992,-500.0,0.00050136,120]
[322585999,1713084688006,-500.0,0.00050136,120]
[322586000,1713084688016,-500.0,0.00050136,120]
[322586001,1713084688026,-6398.5,0.00050136,120]
[322586002,1713084688038,-500.0,0.00050136,120]
[322586003,1713084688048,-500.0,0.00050136,120]
[322586004,1713084688058,-500.0,0.00050136,120]
[322586005,1713084688068,-500.0,0.00050136,120]
[322586006,1713084688078,-6602.79,0.00050136,120]
[322586007,1713084688089,-580.47727686,0.00050136,120]
[322586008,1713084688100,-2745.69,0.00050136,120]
[322586009,1713084688111,-500.0,0.00050136,120]
[322586010,1713084688122,-926.51,0.00050136,120]
[322586011,1713084688133,-9721.5,0.00050136,120]
[322586012,1713084688144,-4433.61,0.00050136,120]
[322586013,1713084688155,-10667.4,0.00050136,120]
[322586014,1713084688165,-1015.04,0.00050136,120]
[322586015,1713084688175,-500.0,0.00050136,120]
[322586016,1713084688185,-11878.7837595,0.00050136,120]
[322586017,1713084689689,-258.2923,0.00028989,2]
[322586018,1713084689945,-288.99877685,0.00028989,2]
[322586019,1713084689958,-292.20549508,0.0002999,2]
[322586020,1713084689970,-292.20549508,0.0002999,2]
[322586021,1713084689983,-292.20549508,0.0002999,2]
[322586022,1713084689997,-292.20549508,0.0002999,2]
[322586023,1713084690013,-292.20549508,0.0002999,2]
[322586024,1713084690024,-59.71509599,0.0002999,2]
[322586025,1713084798495,205.0,9.8e-05,2]
[322586026,1713084802814,209.4011565,0.000101,2]
[322586027,1713084802843,32.76390583,0.000101,2]
[322586029,1713085144701,9167.90083223,0.00019853,7]
[322586030,1713085164666,6355.13576055,0.00019853,7]
[322586031,1713085164690,2812.76507168,0.00019853,7]
[322586032,1713085184667,9167.90083223,0.00019853,7]
[322586033,1713085203126,9167.90083223,0.00019853,7]
[322586035,1713085224751,9167.90083223,0.00019853,7]
[322586036,1713085233261,3695.95361209,0.00020894,30]
[322586037,1713085242671,7648.03425051,0.00019853,7]
[322586039,1713085725988,-257.83754039,0.0001828,2]
[322586040,1713085726017,-1717.64261361,0.00019667,2]
[322586041,1713085726057,-1975.480154,0.00019667,2]
[322586042,1713085726115,-1975.480154,0.00019667,2]
[322586043,1713085726231,-1975.480154,0.00019667,2]
[322586044,1713085726268,-1975.480154,0.00019667,2]
[322586045,1713085726317,-1975.480154,0.00019667,2]
[322586046,1713085726349,-1975.480154,0.00019667,2]
[322586047,1713085726396,-1975.480154,0.00019667,2]
[322586048,1713085726505,-1975.480154,0.00019667,2]
[322586049,1713085726577,-1975.480154,0.00019667,2]
[322586050,1713085726630,-269.96032345,0.00019667,2]
[322586051,1713085737726,150.0,0.00017937,2]
[322586052,1713085737747,150.0,0.00017937,2]
[322586053,1713085737767,150.0,0.00017937,2]
[322586054,1713085737787,150.0,0.00017937,2]
[322586055,1713085737806,67.53,0.00017937,2]
[322586063,1713085832260,-257.83754039,0.00019566,2]
[322586064,1713085832269,-392.16245961,0.00019567,2]
[322586095,1713085838206,-1390.34314039,0.00019567,2]
[322586096,1713085838217,-712.05430941,0.00019667,2]
[322586097,1713085838227,-150.0,0.00019818,2]
[322586098,1713085838237,-241.03,0.00019838,2]
[322586099,1713085838247,-500.0,0.00019847,2]
[322586100,1713085838257,-200.0,0.0001985,2]
[322586101,1713085838266,-276.57369564,0.00019853,2]
[322586102,1713085838276,-200.0,0.00019854,2]
[322586103,1713085838286,-500.0,0.00019854,2]
[322586104,1713085838296,-250.0,0.00019855,2]
[322586105,1713085838306,-500.0,0.00019895,2]
[322586106,1713085838315,-150.99,0.00019925,2]
[322586107,1713085838325,-1314.64,0.00019925,2]
[322586108,1713085838334,-60276.75358237,0.0002,2]
[322586109,1713085838347,-183.07,0.00020058,2]
[322586110,1713085838356,-499.99,0.00020058,2]
[322586111,1713085838365,-667.53,0.000202,2]
[322586112,1713085838375,-165.25180581,0.000208,2]
[322586113,1713085838386,-6139.0614,0.000208,2]
[322586114,1713085838396,-151.80671861,0.000208,2]
[322586115,1713085838405,-1000.0,0.000208,2]
[322586116,1713085838413,-649.09723948,0.000208,2]
[322586117,1713085838422,-1041.05693561,0.000208,2]
[322586118,1713085838435,-320.7123654,0.000208,2]
[322586119,1713085838446,-1313.73024677,0.000208,2]
[322586120,1713085838455,-151.80671849,0.00020802,2]
[322586121,1713085838465,-151.80671849,0.00020805,2]
[322586122,1713085838475,-151.80671849,0.00020807,2]
[322586123,1713085838484,-151.80671849,0.00020809,2]
[322586124,1713085838494,-1313.73024675,0.00020809,2]
[322586125,1713085838503,-649.09723944,0.00020811,2]
[322586126,1713085838513,-1041.05693553,0.00020811,2]
[322586127,1713085838522,-151.80671849,0.00020811,2]
[322586128,1713085838532,-151.80671849,0.00020814,2]
[322586129,1713085838541,-151.80671849,0.00020816,2]
[322586130,1713085838550,-151.80671849,0.00020818,2]
[322586131,1713085838559,-1313.73024675,0.00020818,2]
[322586132,1713085838569,-320.7123654,0.0002082,2]
[322586133,1713085838578,-151.80671849,0.0002082,2]
[322586134,1713085838587,-649.09723944,0.00020822,2]
[322586135,1713085838596,-1041.05693553,0.00020822,2]
[322586136,1713085838604,-151.80671849,0.00020823,2]
[322586137,1713085838614,-151.80671849,0.00020825,2]
[322586138,1713085838623,-151.80671849,0.00020827,2]
[322586139,1713085838632,-1313.73024675,0.00020827,2]
[322586140,1713085838640,-151.80671849,0.0002083,2]
[322586141,1713085838650,-151.80671849,0.00020832,2]
[322586142,1713085838658,-649.09723944,0.00020833,2]
[322586143,1713085838668,-1041.05693553,0.00020833,2]
[322586144,1713085838677,-151.80671849,0.00020834,2]
[322586145,1713085838687,-151.80671849,0.00020836,2]
[322586146,1713085838696,-1313.73024675,0.00020836,2]
[322586147,1713085838706,-151.80671849,0.00020839,2]
[322586148,1713085838715,-320.7123654,0.0002084,2]
[322586149,1713085838725,-151.80671849,0.00020841,2]
[322586150,1713085838735,-151.80671849,0.00020843,2]
[322586151,1713085838745,-649.09723944,0.00020844,2]
[322586152,1713085838754,-1041.05693553,0.00020844,2]
[322586153,1713085838763,-151.80671849,0.00020845,2]
[322586154,1713085838772,-1313.73024675,0.00020845,2]
[322586155,1713085838781,-151.80671849,0.00020848,2]
[322586156,1713085838790,-165.25180579,0.0002085,2]
[322586157,1713085838800,-150.99,0.0002085,2]
[322586158,1713085838809,-151.80671849,0.0002085,2]
[322586159,1713085838818,-151.80671849,0.00020852,2]
[322586160,1713085838827,-151.80671849,0.00020855,2]
[322586161,1713085838837,-1313.73024675,0.00020855,2]
[322586162,1713085838846,-649.09723944,0.00020856,2]
[322586163,1713085838856,-1041.05693553,0.00020856,2]
[322586164,1713085838867,-151.80671849,0.00020857,2]
[322586165,1713085838876,-151.80671849,0.00020859,2]
[322586166,1713085838885,-320.7123654,0.0002086,2]
[322586167,1713085838894,-151.80671849,0.00020861,2]
[322586168,1713085838904,-151.80671849,0.00020864,2]
[322586169,1713085838913,-1313.73024675,0.00020864,2]
[322586170,1713085838922,-151.80671849,0.00020866,2]
[322586171,1713085838937,-649.09723944,0.00020867,2]
[322586172,1713085838946,-1041.05693553,0.00020867,2]
[322586173,1713085838954,-151.80671849,0.00020868,2]
[322586174,1713085838963,-151.80671849,0.0002087,2]
[322586175,1713085838973,-151.80671849,0.00020873,2]
[322586176,1713085838981,-151.80671849,0.00020875,2]
[322586177,1713085838991,-151.80671849,0.00020877,2]
[322586178,1713085839000,-649.09723944,0.00020878,2]
[322586179,1713085839009,-1041.05693553,0.00020878,2]
[322586180,1713085839018,-151.80671849,0.0002088,2]
[322586181,1713085839027,-320.7123654,0.0002088,2]
[322586182,1713085839037,-151.80671849,0.00020882,2]
[322586183,1713085839046,-151.80671849,0.00020884,2]
[322586184,1713085839055,-151.80671849,0.00020886,2]
[322586185,1713085839065,-151.80671849,0.00020889,2]
[322586186,1713085839075,-649.09723944,0.00020889,2]
[322586187,1713085839085,-1041.05693553,0.00020889,2]
[322586188,1713085839094,-152.63,0.0002089,2]
[322586189,1713085839103,-152.63,0.0002089,2]
[322586190,1713085839112,-152.63,0.0002089,2]
[322586191,1713085839122,-152.63,0.0002089,2]
[322586192,1713085839132,-152.63,0.0002089,2]
[322586193,1713085839142,-152.63,0.0002089,2]
[322586194,1713085839151,-151.80671849,0.00020891,2]
[322586195,1713085839160,-151.80671849,0.00020893,2]
[322586196,1713085839169,-785.06376985,0.00020894,4]
[322586197,1713085839181,-151.80671849,0.00020895,2]
[322586198,1713085839191,-402.70362688,0.00020896,2]
[322586199,1713085839200,-151.80671849,0.00020898,2]
[322586200,1713085839209,-324.47216229,0.00020898,2]
[322586201,1713085839217,-1305.42480343,0.00020898,2]
[322586202,1713085839226,-327.28708523,0.00020898,2]
[322586203,1713085839236,-155.0,0.00020899,2]
[322586204,1713085839245,-405.1994349,0.00020899,2]
[322586205,1713085839255,-34667.67159276,0.00020899,2]
[322586206,1713085839264,-1369524.170044,0.000209,3]
[322586207,1713085839273,-5633.31869216,0.000209,2]
[322586208,1713085839282,-165.25180579,0.000209,2]
[322586209,1713085839292,-151.80671849,0.000209,2]
[322586210,1713085839322,-10000.0,0.000209,2]
[322586211,1713085839332,-649.09723944,0.000209,2]
[322586212,1713085839344,-1041.05693553,0.000209,2]